bitfinex-derivatives/quotes_BNBF0:USTF0_20250116
["timestamp","ask_amount","ask_price","bid_price","bid_amount"]
[1736990026892,1.89866911,710.82,710.68,5.848]
[1736990027097,1.13943467,710.81,710.68,5.848]
[1736990027300,1.13943467,710.8,710.68,5.848]
[1736990027498,1.04975023,711.14,710.68,5.848]
[1736990027700,3.11447136,711.13,710.68,5.848]
[1736990027901,3.11447136,711.12,710.68,5.848]
[1736990028201,3.11447136,711.11,710.68,5.848]
[1736990028401,3.11516696,711.1,710.68,5.848]
[1736990028599,3.11516696,711.09,710.68,5.848]
[1736990028798,3.11516696,711.08,710.68,5.848]
[1736990028999,3.11516696,711.07,710.68,5.848]
[1736990029200,3.11516696,711.06,710.68,5.848]
[1736990029501,3.11516696,711.05,710.68,5.848]
[1736990029698,3.11516696,711.04,710.68,5.848]
[1736990029902,1.04975023,711.16,710.68,5.848]
[1736990029903,3.11544698,711.03,710.68,5.848]
[1736990030102,3.11544698,711.02,710.68,5.848]
[1736990030304,3.11544698,711.01,710.68,7.491]
[1736990030604,3.11544698,711.0,710.68,7.491]
[1736990030804,3.11544698,710.99,710.68,7.491]
[1736990031003,3.11544698,710.98,710.68,7.491]
[1736990031205,3.11544698,710.97,710.68,7.491]
[1736990031400,1.04975023,711.16,710.68,7.491]
[1736990031401,3.11544698,710.96,710.68,7.491]
[1736990031707,3.11544698,710.95,710.68,7.491]
[1736990031898,3.11544698,710.94,710.68,7.491]
[1736990032102,3.11544698,710.93,710.68,7.491]
[1736990032306,1.89982883,710.92,710.68,7.491]
[1736990032506,3.11599994,710.91,710.68,7.491]
[1736990032707,1.89982883,710.9,710.68,7.491]
[1736990032909,1.89982883,710.89,710.68,7.491]
[1736990033107,1.89982883,710.88,710.68,7.491]
[1736990033303,1.89982883,710.87,710.68,7.491]
[1736990033507,1.89982883,710.86,710.68,7.491]
[1736990033707,1.90091424,710.85,710.68,7.491]
[1736990033901,1.90091424,710.84,710.68,7.491]
[1736990034106,1.90091424,710.83,710.68,7.491]
[1736990034307,1.90087905,710.82,710.68,7.491]
[1736990034608,1.90087905,710.81,710.68,7.491]
[1736990034807,1.90087905,710.8,710.68,5.997]
[1736990035002,1.14111771,710.79,710.68,5.997]
[1736990035204,1.04975023,711.16,710.68,2.768]
[1736990035504,3.1184554,711.15,710.68,2.768]
[1736990035709,3.1184554,711.14,710.68,2.768]
[1736990035905,1.04975023,711.03,710.68,4.292]
[1736990036103,3.1184554,711.02,710.68,4.292]
[1736990036307,3.1184554,711.01,710.68,7.814]
[1736990036507,3.1184554,711.0,710.68,7.814]
[1736990036710,3.1184554,710.99,710.68,7.814]
[1736990037011,3.1184554,710.98,710.68,7.814]
[1736990037212,3.1184554,710.97,710.68,7.814]
[1736990037508,3.1184554,710.96,710.68,7.814]
[1736990037711,3.1184554,710.95,710.68,7.814]
[1736990038010,3.1184554,710.94,710.68,7.814]
[1736990038208,3.1184554,710.93,710.68,7.814]
[1736990038406,3.1184554,710.92,710.68,7.814]
[1736990038605,3.1184554,710.91,710.68,7.814]
[1736990038809,3.1184554,710.9,710.68,7.814]
[1736990039004,3.1184554,710.89,710.68,7.814]
[1736990039209,3.1184554,710.88,710.68,7.814]
[1736990039409,3.1184554,710.87,710.68,7.814]
[1736990039611,3.1184554,710.86,710.68,7.814]
[1736990039910,3.1184554,710.85,710.68,7.814]
[1736990040107,3.11945302,710.84,710.68,7.814]
[1736990040314,1.9017304,710.83,710.68,7.814]
[1736990040504,1.9017304,710.82,710.68,7.814]
[1736990040709,3.11932536,710.81,710.68,7.814]
[1736990041013,1.9017304,710.8,710.68,7.814]
[1736990041211,3.12051453,710.79,710.68,7.814]
[1736990041511,1.04975023,710.97,710.68,6.689]
[1736990041512,1.90297932,710.78,710.68,6.689]
[1736990041714,1.90297932,710.77,710.68,6.689]
[1736990041907,1.90299788,710.76,710.68,6.689]
[1736990042109,1.90299788,710.75,710.68,6.689]
[1736990042405,1.90299788,710.74,710.68,6.689]
[1736990042609,1.90299788,710.73,710.68,6.689]
[1736990042811,1.90299788,710.72,710.68,6.689]
[1736990043009,1.9030128,710.71,710.68,6.689]
[1736990043215,1.90298643,710.7,710.68,6.689]
[1736990043414,1.14204585,710.69,710.68,6.689]
[1736990043609,1.90296578,710.69,710.68,6.689]
[1736990044008,1.14204585,710.69,710.68,6.689]
[1736990044314,1.14204585,710.69,710.68,5.046]
[1736990044916,1.14205161,710.69,710.68,5.046]
[1736990045609,1.04975023,711.02,710.68,5.046]
[1736990045814,3.12072928,711.01,710.68,5.046]
[1736990046014,3.12072928,711.0,710.68,5.046]
[1736990046212,3.12072928,710.99,710.68,5.046]
[1736990046417,3.12072928,710.98,710.68,5.046]
[1736990046616,3.12072928,710.97,710.68,5.046]
[1736990046818,3.12071506,710.96,710.68,5.046]
[1736990047019,3.12071506,710.95,710.68,5.046]
[1736990047220,3.12071506,710.94,710.68,5.046]
[1736990047414,3.12071506,710.93,710.68,5.046]
[1736990047614,3.12071506,710.92,710.68,6.976]
[1736990047820,3.12071506,710.91,710.68,6.976]
[1736990048019,3.12071506,710.9,710.68,6.976]
[1736990048319,3.12071506,710.89,710.68,6.976]
[1736990048520,3.12071506,710.88,710.68,6.976]
[1736990048720,3.12085215,710.87,710.68,6.976]
[1736990048914,1.9032331,710.86,710.68,6.976]
[1736990049117,1.9032331,710.85,710.68,6.976]
[1736990049318,1.9033475,710.84,710.68,6.976]
[1736990049519,1.9033475,710.83,710.68,6.976]
[1736990049821,1.9033475,710.82,710.68,6.976]
[1736990050020,1.9033475,710.81,710.68,6.976]
[1736990050214,1.9033475,710.8,710.68,6.976]
[1736990050417,1.9033475,710.79,710.68,6.976]
[1736990050614,1.04975023,711.13,710.68,6.976]
[1736990050615,1.14224431,710.78,710.68,6.976]
[1736990050821,1.14224431,710.77,710.68,6.976]
[1736990051018,1.04975023,711.13,710.68,6.976]
[1736990051219,3.12127244,711.12,710.68,6.976]
[1736990051415,3.12127244,711.11,710.68,6.976]
[1736990051619,3.12127244,711.1,710.68,6.976]
[1736990051815,3.12127244,711.09,710.68,6.976]
[1736990052021,3.12127244,711.08,710.68,6.976]
[1736990052220,1.04975023,711.16,710.68,6.976]
[1736990052419,0.28121089,711.21,710.68,6.976]
[1736990052923,3.12061235,711.2,710.68,6.976]
[1736990053124,3.12061235,711.19,710.68,6.976]
[1736990053326,1.90305165,711.18,710.68,6.976]
[1736990053520,3.12061235,711.17,710.68,6.976]
[1736990053722,3.12061235,711.16,710.68,6.976]
[1736990054025,3.12061235,711.15,710.68,6.976]
[1736990054223,3.12061235,711.14,710.68,6.976]
[1736990054524,3.12061235,711.13,710.68,6.976]
[1736990054723,0.28121089,711.21,710.68,6.976]
[1736990054724,3.12061235,711.12,710.68,6.976]
[1736990054924,3.12061235,711.11,710.68,6.976]
[1736990055120,3.12061235,711.1,710.68,6.976]
[1736990055323,3.12061235,711.09,710.68,6.976]
[1736990055519,3.12061235,711.08,710.68,6.976]
[1736990055721,3.12061235,711.07,710.68,6.976]
[1736990055919,3.12061235,711.06,710.68,6.976]
[1736990056123,1.90305165,711.05,710.68,6.976]
[1736990056325,1.90305165,711.04,710.68,6.976]
[1736990056528,1.90225318,711.03,710.68,6.976]
[1736990056825,1.90225318,711.02,710.68,6.976]
[1736990057023,1.14207621,711.01,710.68,6.976]
[1736990057224,0.28121089,711.21,710.68,6.976]
[1736990057225,1.90122513,711.0,710.68,6.976]
[1736990057420,1.14097982,710.99,710.68,6.976]
[1736990057625,1.14097982,710.98,710.68,6.976]
[1736990057826,0.28121089,711.21,710.68,6.976]
[1736990058021,3.11715253,711.2,710.68,6.976]
[1736990058220,3.11715253,711.19,710.68,6.976]
[1736990058528,3.11715253,711.18,710.68,6.976]
[1736990058828,0.28121089,711.21,710.68,6.976]
[1736990058829,3.11715253,711.17,710.68,6.976]
[1736990059027,3.11715253,711.16,710.68,6.976]
[1736990059322,3.11715253,711.15,710.68,6.976]
[1736990059527,0.28121089,711.21,710.68,6.976]
[1736990059528,3.11715253,711.14,710.68,6.976]
[1736990059727,3.11715253,711.13,710.68,6.976]
[1736990059928,3.11715253,711.12,710.68,6.976]
[1736990060124,3.11715253,711.11,710.68,6.976]
[1736990060329,3.11715253,711.1,710.68,6.976]
[1736990060628,3.11715253,711.09,710.68,6.976]
[1736990060829,3.11715253,711.08,710.68,6.976]
[1736990061030,1.90094188,711.07,710.68,6.976]
[1736990061225,1.90094188,711.06,710.68,6.976]
[1736990061431,1.90094188,711.05,710.68,6.976]
[1736990061630,1.90094188,711.04,710.68,6.976]
[1736990061826,1.90094188,711.03,710.68,6.976]
[1736990062032,1.14081022,711.02,710.68,6.976]
[1736990062226,0.28121089,711.21,710.68,6.976]
[1736990062430,3.11539131,711.2,710.68,6.976]
[1736990062632,3.11563062,711.19,710.68,6.976]
[1736990062832,3.11563062,711.18,710.68,6.976]
[1736990063031,3.11563062,711.17,710.68,6.976]
[1736990063234,3.1156138,711.16,710.68,6.976]
[1736990063433,3.1156138,711.15,710.68,6.976]
[1736990063737,3.1156138,711.14,710.68,6.976]
[1736990063934,0.28121089,711.21,710.68,6.976]
[1736990063935,3.1156138,711.13,710.68,6.976]
[1736990064136,3.1156138,711.12,710.68,6.976]
[1736990064332,1.89999873,711.11,710.68,6.976]
[1736990064536,1.89999873,711.1,710.68,6.976]
[1736990064731,1.89999873,711.09,710.68,6.976]
[1736990064936,1.89999873,711.08,710.68,6.976]
[1736990065236,1.89999873,711.07,710.68,6.976]
[1736990065439,1.89999873,711.06,710.68,6.976]
[1736990065633,1.89999873,711.05,710.68,6.976]
[1736990065832,1.14023931,711.04,710.68,6.976]
[1736990066032,0.28121089,711.21,710.68,6.976]
[1736990066231,3.11438412,711.2,710.68,6.976]
[1736990066438,3.11438412,711.19,710.68,6.976]
[1736990066640,3.11438412,711.18,710.68,6.976]
[1736990066938,3.11438412,711.17,710.68,6.976]
[1736990067144,3.11438412,711.16,710.68,6.976]
[1736990067436,3.11438412,711.15,710.68,6.976]
[1736990067636,1.899255,711.14,710.68,6.976]
[1736990067931,1.899255,711.13,710.68,6.976]
[1736990068137,1.899255,711.12,710.68,6.976]
[1736990068337,1.899255,711.11,710.68,6.976]
[1736990068537,1.899255,711.1,710.68,6.976]
[1736990068738,1.899255,711.09,710.68,6.976]
[1736990068932,1.899255,711.08,710.68,6.976]
[1736990069135,1.1397993,711.07,710.68,6.976]
[1736990069439,1.13967667,711.06,710.68,6.976]
[1736990069638,0.28121089,711.21,710.68,6.976]
[1736990069834,3.11399135,711.2,710.68,6.976]
[1736990070036,3.11399135,711.19,710.68,6.976]
[1736990070232,3.11399135,711.18,710.68,6.976]
[1736990070429,3.11399135,711.17,710.68,6.976]
[1736990070635,3.11399135,711.16,710.68,6.976]
[1736990070935,3.11393551,711.15,710.68,6.976]
[1736990071135,1.89901711,711.14,710.68,6.976]
[1736990071336,1.89901711,711.13,710.68,6.976]
[1736990071537,1.89901711,711.12,710.68,6.976]
[1736990071734,1.89901711,711.11,710.68,6.976]
[1736990071939,1.89901711,711.1,710.68,6.976]
[1736990072139,0.28121089,711.21,710.68,6.976]
[1736990072140,1.89901711,711.09,710.68,6.976]
[1736990072436,1.89901711,711.08,710.68,6.976]
[1736990072740,1.8987334,711.07,710.68,6.976]
[1736990073039,1.13948087,711.06,710.68,6.976]
[1736990073338,0.28121089,711.21,710.68,6.976]
[1736990073539,3.11345146,711.2,710.68,6.976]
[1736990073739,1.89868703,711.19,710.68,6.976]
[1736990074041,3.11342936,711.18,710.68,6.976]
[1736990074245,1.89868703,711.17,710.68,6.976]
[1736990074434,1.89868703,711.16,710.68,6.976]
[1736990074635,1.89868703,711.15,710.68,6.976]
[1736990074839,1.89868703,711.14,710.68,8.101]
[1736990075035,1.89868703,711.13,710.68,8.101]
[1736990075235,1.89868703,711.12,710.68,8.101]
[1736990075439,1.89868703,711.11,710.68,8.101]
[1736990075640,1.89868703,711.1,710.68,8.101]
[1736990075841,1.89868703,711.09,710.68,8.101]
[1736990076142,1.89868703,711.08,710.68,8.101]
[1736990076338,1.13945927,711.07,710.68,8.101]
[1736990076539,0.28121089,711.21,710.68,8.101]
[1736990076742,3.11329425,711.2,710.68,8.101]
[1736990077042,0.75918959,711.19,710.68,8.101]
[1736990077239,3.11302785,711.18,710.68,8.101]
[1736990077444,1.89850635,711.17,710.68,8.101]
[1736990077648,1.89850635,711.16,710.68,8.101]
[1736990077847,1.89850635,711.15,710.68,8.101]
[1736990078047,1.89850635,711.14,710.68,8.101]
[1736990078242,1.89850635,711.13,710.68,8.101]
[1736990078445,1.89850635,711.12,710.68,8.101]
[1736990078647,1.89836203,711.11,710.68,8.101]
[1736990078842,1.89836203,711.1,710.68,8.101]
[1736990079045,1.89836203,711.09,710.68,8.101]
[1736990079247,1.89836203,711.08,710.68,8.101]
[1736990079448,1.89836203,711.07,710.68,8.101]
[1736990079641,1.13917244,711.06,710.68,8.101]
[1736990079844,0.28121089,711.21,710.68,8.101]
[1736990080046,3.11298713,711.2,710.68,8.101]
[1736990080249,3.11298713,711.19,710.68,8.101]
[1736990080447,3.11298713,711.18,710.68,8.101]
[1736990080647,1.89840264,711.17,710.68,8.101]
[1736990080947,1.89840264,711.16,710.68,8.101]
[1736990081145,1.89840264,711.15,710.68,8.101]
[1736990081341,1.89840264,711.14,710.68,8.101]
[1736990081647,1.89840264,711.13,710.68,8.101]
[1736990081849,1.89840264,711.12,710.68,8.101]
[1736990082048,1.89840264,711.11,710.68,8.101]
[1736990082247,1.89840264,711.1,710.68,8.101]
[1736990082439,0.28121089,711.21,710.68,8.101]
[1736990082440,1.89840264,711.09,710.68,8.101]
[1736990082645,1.89840264,711.08,710.68,8.101]
[1736990082842,1.89840264,711.07,710.68,8.101]
[1736990083041,1.13928733,711.06,710.68,8.101]
[1736990083245,0.28121089,711.21,710.68,8.101]
[1736990083549,3.1136256,711.2,710.68,8.101]
[1736990083847,1.89879327,711.19,710.68,8.101]
[1736990084048,1.89879327,711.18,710.68,8.101]
[1736990084246,1.89879327,711.17,710.68,8.101]
[1736990084448,1.89880296,711.16,710.68,8.101]
[1736990084750,1.89880296,711.15,710.68,8.101]
[1736990084941,1.89877207,711.14,710.68,8.101]
[1736990085143,1.89877207,711.13,710.68,8.101]
[1736990085344,1.89877207,711.12,710.68,8.101]
[1736990085546,1.89877207,711.11,710.68,8.101]
[1736990085744,1.89877207,711.1,710.68,8.101]
[1736990085949,1.13951104,711.09,710.68,8.101]
[1736990086143,1.13954294,711.08,710.68,8.101]
[1736990086344,0.28121089,711.21,710.68,8.101]
[1736990086544,3.11366899,711.2,710.68,8.101]
[1736990086748,3.11365214,711.19,710.68,8.101]
[1736990087047,1.89882044,711.18,710.68,8.101]
[1736990087351,1.89882044,711.17,710.68,8.101]
[1736990087543,1.1395401,711.16,710.68,8.101]
[1736990087748,1.1395401,711.15,710.68,8.101]
[1736990087948,0.28121089,711.21,710.68,8.101]
[1736990088151,1.89876345,711.2,710.68,8.101]
[1736990088351,1.89876345,711.19,710.68,8.101]
[1736990088652,1.89876345,711.18,710.68,8.101]
[1736990088847,1.89876345,711.17,710.68,8.101]
[1736990089045,1.89876345,711.16,710.68,8.101]
[1736990089246,1.13951037,711.15,710.68,8.101]
[1736990089446,0.28121089,711.21,710.68,8.101]
[1736990089651,1.8986309,711.2,710.68,8.101]
[1736990089852,1.8986309,711.19,710.68,8.101]
[1736990090151,1.89858327,711.18,710.68,8.101]
[1736990090350,1.13936003,711.17,710.68,8.101]
[1736990090549,0.28121089,711.21,710.68,8.101]
[1736990090746,1.89851116,711.2,710.68,8.101]
[1736990090950,1.89851423,711.19,710.68,8.101]
[1736990091152,1.89851423,711.18,710.68,8.101]
[1736990091353,1.13935913,711.17,710.68,8.101]
[1736990091652,1.13931467,711.16,710.68,8.101]
[1736990091954,1.05359611,711.4,710.68,8.101]
[1736990092155,3.11295628,711.39,710.68,8.101]
[1736990092352,1.13928821,711.38,710.68,8.101]
[1736990092553,3.11284118,711.37,710.68,8.101]
[1736990092753,4.16643729,711.36,710.68,8.101]
[1736990093051,3.11284118,711.35,710.68,8.101]
[1736990093252,3.11284118,711.34,710.68,8.101]
[1736990093550,1.89834704,711.33,710.68,8.101]
[1736990093852,1.89834704,711.32,710.68,8.101]
[1736990094050,1.89834704,711.31,710.68,8.101]
[1736990094252,1.89834704,711.3,710.68,8.101]
[1736990094446,1.05359611,711.47,710.68,8.101]
[1736990094447,1.89834704,711.29,710.68,8.101]
[1736990094648,1.89834704,711.28,710.68,8.101]
[1736990094849,1.05359611,711.47,710.68,8.101]
[1736990094850,1.89834704,711.27,710.68,8.101]
[1736990095154,1.26431533,711.94,710.68,8.101]
[1736990095155,1.89834704,711.26,710.68,8.101]
[1736990095354,1.89834704,711.25,710.68,8.101]
[1736990095546,1.89834704,711.24,710.68,8.101]
[1736990095747,1.89834704,711.23,710.68,8.101]
[1736990095952,1.8981947,711.22,710.68,8.101]
[1736990096154,1.13928821,711.21,710.68,8.101]
[1736990096448,1.05359611,711.41,710.68,8.101]
[1736990096653,3.11208636,711.4,710.68,8.101]
[1736990096856,3.11208636,711.39,710.68,8.101]
[1736990097156,3.11208636,711.38,710.68,8.101]
[1736990097355,3.11208636,711.37,710.68,8.101]
[1736990097558,3.11208636,711.36,710.68,8.101]
[1736990097755,3.11208636,711.35,710.68,8.101]
[1736990097954,3.11208636,711.34,710.68,8.101]
[1736990098154,3.11208636,711.33,710.68,8.101]
[1736990098456,3.11208636,711.32,710.68,8.101]
[1736990098659,3.11208636,711.31,710.68,8.101]
[1736990098858,3.1121054,711.3,710.68,8.101]
[1736990099050,1.89788103,711.29,710.68,8.101]
[1736990099250,1.89788103,711.28,710.68,8.101]
[1736990099454,1.89788103,711.27,710.68,8.101]
[1736990099656,1.89788103,711.26,710.68,8.101]
[1736990099855,1.89788103,711.25,710.68,8.101]
[1736990100055,1.89788103,711.24,710.68,8.101]
[1736990100254,1.89788103,711.23,710.68,8.101]
[1736990100455,1.89788103,711.22,710.68,8.101]
[1736990100759,1.89788103,711.21,710.68,8.101]
[1736990100955,1.89788103,711.2,710.68,8.101]
[1736990101163,1.89788103,711.19,710.68,8.101]
[1736990101360,1.89788103,711.18,710.68,8.101]
[1736990101562,1.1389908,711.17,710.68,8.101]
[1736990101764,1.1389908,711.16,710.68,8.101]
[1736990102064,1.05359611,711.39,710.68,8.101]
[1736990102264,3.11286656,711.38,710.68,8.101]
[1736990102456,3.11286656,711.37,710.68,8.101]
[1736990102659,3.11286656,711.36,710.68,8.101]
[1736990102857,3.11286656,711.35,710.68,8.101]
[1736990103064,3.11286656,711.34,710.68,8.101]
[1736990103359,1.13925388,711.33,710.68,8.101]
[1736990103563,3.11325453,711.32,710.68,8.101]
[1736990103762,3.11325453,711.31,710.68,8.101]
[1736990103965,3.11325453,711.3,710.68,8.101]
[1736990104265,3.11325453,711.29,710.68,8.101]
[1736990104459,3.11325453,711.28,710.68,8.101]
[1736990104661,3.11325453,711.27,710.68,8.101]
[1736990104861,3.11325453,711.26,710.68,8.101]
[1736990105057,3.11325453,711.25,710.68,8.101]
[1736990105259,3.11325453,711.24,710.68,8.101]
[1736990105460,1.05359611,711.4,710.68,8.101]
[1736990105461,3.11325453,711.23,710.68,8.101]
[1736990105666,3.11325453,711.22,710.68,8.101]
[1736990105860,1.8988304,711.21,710.68,8.101]
[1736990106065,1.8988304,711.2,710.68,8.101]
[1736990106267,1.8988304,711.19,710.68,8.101]
[1736990106566,1.8988304,711.18,710.68,8.101]
[1736990106767,1.8988304,711.17,710.68,8.101]
[1736990106964,1.8988304,711.16,710.68,8.101]
[1736990107163,1.8988304,711.15,710.68,8.101]
[1736990107361,1.9002756,711.14,710.68,8.101]
[1736990107567,1.9002756,711.13,710.68,8.101]
[1736990107868,1.9002756,711.12,710.68,8.101]
[1736990108062,1.14069908,711.11,710.68,8.101]
[1736990108367,1.05359611,711.38,710.68,8.101]
[1736990108568,3.1174236,711.37,710.68,8.101]
[1736990108867,3.1174236,711.36,710.68,8.101]
[1736990109161,3.1174236,711.35,710.68,8.101]
[1736990109364,3.11765906,711.34,710.68,8.101]
[1736990109560,3.11765906,711.33,710.68,8.101]
[1736990109767,3.11765906,711.32,710.68,8.101]
[1736990109970,3.11765906,711.31,710.68,8.101]
[1736990110167,3.11765906,711.3,710.68,8.101]
[1736990110363,3.11765906,711.29,710.68,8.101]
[1736990110567,3.11765906,711.28,710.68,8.101]
[1736990110765,3.11765906,711.27,710.68,8.101]
[1736990110965,3.11765906,711.26,710.68,8.101]
[1736990111267,3.11838408,711.25,710.68,8.101]
[1736990111469,3.11838408,711.24,710.68,8.101]
[1736990111669,3.11838408,711.23,710.68,8.101]
[1736990111862,3.11838408,711.22,710.68,8.101]
[1736990112064,3.11838408,711.21,710.68,8.101]
[1736990112267,3.11838408,711.2,710.68,8.101]
[1736990112470,3.11838408,711.19,710.68,8.101]
[1736990112767,3.11838408,711.18,710.68,8.101]
[1736990112968,1.14115617,711.17,710.68,8.101]
[1736990113168,3.11720484,711.16,710.68,8.101]
[1736990113364,3.11720484,711.15,710.68,8.101]
[1736990113565,0.28093438,711.91,710.68,8.101]
[1736990113566,3.11660482,711.14,710.68,8.101]
[1736990113763,3.11660482,711.13,710.68,8.101]
[1736990113968,3.37513252,711.12,710.68,8.101]
[1736990114168,3.11660482,711.11,710.68,8.101]
[1736990114366,3.11660482,711.1,710.68,8.101]
[1736990114567,3.11660482,711.09,710.68,8.101]
[1736990114768,3.11660482,711.08,710.68,8.101]
[1736990115071,1.26431533,711.84,710.68,8.101]
[1736990115072,3.11521281,711.07,710.68,8.101]
[1736990115263,3.11521281,711.06,710.68,8.101]
[1736990115467,3.11521281,711.05,710.68,8.101]
[1736990115669,3.11521281,711.04,710.68,8.101]
[1736990115870,3.11521281,711.03,710.68,8.101]
[1736990116072,3.11521281,711.02,710.68,8.101]
[1736990116268,3.11521281,711.01,710.68,8.101]
[1736990116468,3.11521281,711.0,710.68,8.101]
[1736990116771,3.11521281,710.99,710.68,8.101]
[1736990116971,3.11521281,710.98,710.68,8.101]
[1736990117165,3.11521281,710.97,710.68,8.101]
[1736990117369,3.11521281,710.96,710.68,8.101]
[1736990117570,3.11521281,710.95,710.68,8.101]
[1736990117770,3.11521281,710.94,710.68,8.101]
[1736990117971,1.05359611,711.22,710.68,8.101]
[1736990117972,3.11521281,710.93,710.68,8.101]
[1736990118171,1.05359611,711.22,710.68,8.101]
[1736990118172,1.90040872,710.92,710.68,8.101]
[1736990118373,1.90040872,710.91,710.68,8.101]
[1736990118574,1.26431533,711.7,710.68,8.101]
[1736990118575,1.14115617,710.9,710.68,8.101]
[1736990118769,1.05359611,711.25,710.68,8.101]
[1736990118974,3.11116521,711.24,710.68,8.101]
[1736990119175,3.36964534,711.23,710.68,8.101]
[1736990119378,3.36964534,711.22,710.68,8.101]
[1736990119575,3.36964534,711.21,710.68,8.101]
[1736990119776,3.36964534,711.2,710.68,8.101]
[1736990120077,3.11116521,711.19,710.68,8.101]
[1736990120270,3.11116521,711.18,710.68,8.101]
[1736990120577,3.11116521,711.17,710.68,8.101]
[1736990120777,3.11203378,711.16,710.68,8.101]
[1736990120976,3.11203378,711.15,710.68,8.101]
[1736990121277,1.26431533,711.8,710.68,8.101]
[1736990121278,3.11194784,711.14,710.68,8.101]
[1736990121474,3.11194784,711.13,710.68,8.101]
[1736990121676,3.11194784,711.12,710.68,8.101]
[1736990121876,3.11194784,711.11,710.68,8.101]
[1736990122075,3.11194784,711.1,710.68,8.101]
[1736990122273,1.13892861,711.09,710.68,8.101]
[1736990122479,1.05359611,711.45,710.68,8.101]
[1736990122782,3.11302617,711.44,710.68,8.101]
[1736990122975,3.11302617,711.43,710.68,8.101]
[1736990123175,3.11302617,711.42,710.68,8.101]
[1736990123373,3.11302617,711.41,710.68,8.101]
[1736990123571,3.11302617,711.4,710.68,8.101]
[1736990123773,3.11302617,711.39,710.68,8.101]
[1736990124078,3.11302617,711.38,710.68,8.101]
[1736990124279,0.28093438,711.91,710.68,8.101]
[1736990124280,3.11302617,711.37,710.68,8.101]
[1736990124478,3.11302617,711.36,710.68,8.101]
[1736990124779,3.11302617,711.35,710.68,8.101]
[1736990124979,3.11302617,711.34,710.68,8.101]
[1736990125280,3.11302617,711.33,710.68,8.101]
[1736990125477,3.11302617,711.32,710.68,8.101]
[1736990125676,3.11302617,711.31,710.68,8.101]
[1736990125873,3.11302617,711.3,710.68,8.101]
[1736990126075,1.05359611,711.78,710.68,8.101]
[1736990126076,3.11302617,711.29,710.68,8.101]
[1736990126274,3.11302617,711.28,710.68,8.101]
[1736990126478,3.11302617,711.27,710.68,8.101]
[1736990126677,3.11302617,711.26,710.68,8.101]
[1736990126878,3.11302617,711.25,710.68,8.101]
[1736990127077,3.11302617,711.24,710.68,8.101]
[1736990127276,3.11302617,711.23,710.68,8.101]
[1736990127478,1.05359611,711.58,710.68,8.101]
[1736990127479,3.11302617,711.22,710.68,8.101]
[1736990127674,3.11302617,711.21,710.68,8.101]
[1736990127879,1.89842983,711.2,710.68,8.101]
[1736990128081,1.89842983,711.19,710.68,8.101]
[1736990128377,1.89830273,711.18,710.68,8.101]
[1736990128582,1.89830273,711.17,710.68,8.101]
[1736990128780,1.89830273,711.16,710.68,8.101]
[1736990128973,1.89822261,711.15,710.68,8.101]
[1736990129178,1.05359611,711.56,710.68,8.101]
[1736990129179,1.89821887,711.14,710.68,8.101]
[1736990129381,1.13918382,711.13,710.68,8.101]
[1736990129580,1.05359611,711.56,710.68,8.101]
[1736990129780,3.37122482,711.55,710.68,8.101]
[1736990130075,3.11284369,711.54,710.68,8.101]
[1736990130278,3.11284369,711.53,710.68,8.101]
[1736990130476,3.11284369,711.52,710.68,8.101]
[1736990130679,3.11284369,711.51,710.68,8.101]
[1736990130876,3.11284369,711.5,710.68,8.101]